[Event "*** SCC Grand Prix: Titled Tuesday Blitz"]
[Site "Chess.com"]
[Date "2020.08.25"]
[Round "5"]
[White "icychess54"]
[Black "ChessyInstinct"]
[Result "0-1"]
[WhiteElo "2238"]
[BlackElo "2485"]
[TimeControl "180+1"]
[EndTime "10:56:06 PDT"]
[Termination "ChessyInstinct won by resignation"]

1. c4 {[%clk 0:03:00.9]} 1... c6 {[%clk 0:03:00.2]} 2. Nf3 {[%clk 0:03:00]} 2...
d5 {[%clk 0:03:00.6]} 3. e3 {[%clk 0:02:59.1]} 3... Nf6 {[%clk 0:03:00.8]} 4.
Nc3 {[%clk 0:02:58.4]} 4... e6 {[%clk 0:03:01.1]} 5. Be2 {[%clk 0:02:58.9]} 5...
Nbd7 {[%clk 0:03:01.5]} 6. O-O {[%clk 0:02:59.5]} 6... Bd6 {[%clk 0:03:02.1]} 7.
b3 {[%clk 0:03:00.2]} 7... O-O {[%clk 0:03:02.5]} 8. Bb2 {[%clk 0:03:00.8]} 8...
b6 {[%clk 0:03:03.1]} 9. d4 {[%clk 0:03:01.4]} 9... Bb7 {[%clk 0:03:03.6]} 10.
Qc2 {[%clk 0:03:01]} 10... c5 {[%clk 0:03:03.2]} 11. Rfd1 {[%clk 0:02:59.9]}
11... Qe7 {[%clk 0:03:02.4]} 12. Rac1 {[%clk 0:02:47.8]} 12... Rac8 {[%clk
0:03:01.4]} 13. cxd5 {[%clk 0:02:43.3]} 13... exd5 {[%clk 0:03:00.8]} 14. Qf5
{[%clk 0:02:39]} 14... a6 {[%clk 0:02:48.9]} 15. Na4 {[%clk 0:02:17.5]} 15...
Ne4 {[%clk 0:02:31.8]} 16. dxc5 {[%clk 0:02:07.9]} 16... bxc5 {[%clk 0:02:29.7]}
17. Bd3 {[%clk 0:01:43.2]} 17... Ndf6 {[%clk 0:02:19.4]} 18. Bxe4 {[%clk
0:01:35.6]} 18... Nxe4 {[%clk 0:02:19.2]} 19. Nb6 {[%clk 0:01:33.4]} 19... Rcd8
{[%clk 0:02:03.8]} 20. Nxd5 {[%clk 0:01:17.8]} 20... Bxd5 {[%clk 0:01:59.5]} 21.
Rxd5 {[%clk 0:01:16.1]} 21... g6 {[%clk 0:01:46.3]} 22. Qh3 {[%clk 0:00:37.4]}
22... Bxh2+ {[%clk 0:01:44.1]} 23. Nxh2 {[%clk 0:00:38]} 23... Rxd5 {[%clk
0:01:42]} 24. Ng4 {[%clk 0:00:38.9]} 24... f6 {[%clk 0:01:17.7]} 25. f3 {[%clk
0:00:18.6]} 25... Rh5 {[%clk 0:01:10.8]} 26. Qxh5 {[%clk 0:00:13.8]} 26... gxh5
{[%clk 0:01:09.8]} 27. Nh6+ {[%clk 0:00:14.7]} 27... Kh8 {[%clk 0:01:09.5]} 28.
fxe4 {[%clk 0:00:13.5]} 28... Qxe4 {[%clk 0:01:03.6]} 0-1

[Event "*** SCC Grand Prix: Titled Tuesday Blitz"]
[Site "Chess.com"]
[Date "2020.08.25"]
[Round "5"]
[White "ClydeHillKid"]
[Black "Efremov_Vlad"]
[Result "1-0"]
[WhiteElo "2355"]
[BlackElo "2200"]
[TimeControl "180+1"]
[EndTime "10:56:06 PDT"]
[Termination "ClydeHillKid won by resignation"]

1. e4 {[%clk 0:02:54.3]} 1... c5 {[%clk 0:02:50.9]} 2. Nf3 {[%clk 0:02:53.6]}
2... e6 {[%clk 0:02:49]} 3. d3 {[%clk 0:02:51.8]} 3... Nc6 {[%clk 0:02:47.1]} 4.
g3 {[%clk 0:02:51.5]} 4... g6 {[%clk 0:02:46.3]} 5. Bg2 {[%clk 0:02:50.7]} 5...
Bg7 {[%clk 0:02:47]} 6. O-O {[%clk 0:02:49.9]} 6... d6 {[%clk 0:02:46.8]} 7. Re1
{[%clk 0:02:49.7]} 7... Nge7 {[%clk 0:02:45.3]} 8. c3 {[%clk 0:02:47.5]} 8... e5
{[%clk 0:02:23.6]} 9. Be3 {[%clk 0:02:45.3]} 9... O-O {[%clk 0:02:22]} 10. d4
{[%clk 0:02:45]} 10... cxd4 {[%clk 0:02:08.5]} 11. cxd4 {[%clk 0:02:45.9]} 11...
d5 {[%clk 0:01:58]} 12. Nxe5 {[%clk 0:02:34.8]} 12... Nxe5 {[%clk 0:01:52.8]}
13. dxe5 {[%clk 0:02:34.9]} 13... Bxe5 {[%clk 0:01:34.8]} 14. Bd4 {[%clk
0:02:33.5]} 14... Bxd4 {[%clk 0:01:32.2]} 15. Qxd4 {[%clk 0:02:34.4]} 15... dxe4
{[%clk 0:01:32.6]} 16. Qxe4 {[%clk 0:02:34.4]} 16... Nc6 {[%clk 0:01:28.9]} 17.
Nc3 {[%clk 0:02:32.7]} 17... Bf5 {[%clk 0:01:28.6]} 18. Qf4 {[%clk 0:02:28.7]}
18... Re8 {[%clk 0:01:24.9]} 19. Rxe8+ {[%clk 0:02:24.1]} 19... Qxe8 {[%clk
0:01:24.8]} 20. Nd5 {[%clk 0:02:24.8]} 20... Qe5 {[%clk 0:01:14.8]} 21. Qxe5
{[%clk 0:02:19]} 21... Nxe5 {[%clk 0:01:15.7]} 22. Re1 {[%clk 0:02:18.4]} 22...
Nc6 {[%clk 0:01:13.6]} 23. Ne7+ {[%clk 0:02:16]} 23... Nxe7 {[%clk 0:00:59.4]}
24. Rxe7 {[%clk 0:02:16.9]} 24... Rd8 {[%clk 0:00:46.9]} 25. Bxb7 {[%clk
0:02:11.6]} 25... Rd1+ {[%clk 0:00:47.3]} 26. Kg2 {[%clk 0:02:11.3]} 26... Rd2
{[%clk 0:00:48.2]} 27. b4 {[%clk 0:02:03.7]} 27... Be6 {[%clk 0:00:41.9]} 28. a4
{[%clk 0:01:55.9]} 28... Rb2 {[%clk 0:00:38.8]} 29. b5 {[%clk 0:01:51.3]} 29...
Ra2 {[%clk 0:00:35.3]} 30. Ba6 {[%clk 0:01:49.4]} 30... Bd5+ {[%clk 0:00:24.2]}
31. Kh3 {[%clk 0:01:49.2]} 31... Be6+ {[%clk 0:00:22.2]} 32. g4 {[%clk
0:01:44.4]} 32... Rxa4 {[%clk 0:00:20.9]} 33. f3 {[%clk 0:01:40.9]} 33... h5
{[%clk 0:00:20.7]} 34. Rxa7 {[%clk 0:01:36.4]} 34... hxg4+ {[%clk 0:00:20.7]}
35. Kg2 {[%clk 0:01:25.7]} 35... Ra2+ {[%clk 0:00:19.6]} 36. Kg3 {[%clk
0:01:26.2]} 36... Ra3 {[%clk 0:00:19.6]} 37. Ra8+ {[%clk 0:01:24.4]} 37... Kg7
{[%clk 0:00:19]} 38. Bb7 {[%clk 0:01:24.5]} 38... gxf3 {[%clk 0:00:18.1]} 39.
Rxa3 {[%clk 0:01:24]} 1-0

[Event "*** SCC Grand Prix: Titled Tuesday Blitz"]
[Site "Chess.com"]
[Date "2020.08.25"]
[Round "5"]
[White "Quiet_Desperation"]
[Black "kleopl"]
[Result "0-1"]
[WhiteElo "2287"]
[BlackElo "2450"]
[TimeControl "180+1"]
[EndTime "10:56:09 PDT"]
[Termination "kleopl won by resignation"]

1. Nf3 {[%clk 0:03:00.9]} 1... d6 {[%clk 0:02:57.4]} 2. b3 {[%clk 0:03:01.3]}
2... e5 {[%clk 0:02:55.4]} 3. e3 {[%clk 0:03:00.5]} 3... f5 {[%clk 0:02:50.8]}
4. Bb2 {[%clk 0:03:00.6]} 4... Nf6 {[%clk 0:02:50.9]} 5. d4 {[%clk 0:02:59.1]}
5... e4 {[%clk 0:02:50.5]} 6. Nfd2 {[%clk 0:02:59.1]} 6... g6 {[%clk 0:02:49.9]}
7. c4 {[%clk 0:02:58.8]} 7... Bg7 {[%clk 0:02:50]} 8. Be2 {[%clk 0:02:59]} 8...
O-O {[%clk 0:02:50.1]} 9. O-O {[%clk 0:02:59]} 9... c6 {[%clk 0:02:49.3]} 10.
Nc3 {[%clk 0:02:56.9]} 10... g5 {[%clk 0:02:48.6]} 11. f3 {[%clk 0:02:56.1]}
11... exf3 {[%clk 0:02:47.2]} 12. Nxf3 {[%clk 0:02:55.5]} 12... h6 {[%clk
0:02:45.3]} 13. d5 {[%clk 0:02:50.3]} 13... Qe8 {[%clk 0:02:41.2]} 14. Kh1
{[%clk 0:02:33.5]} 14... Qxe3 {[%clk 0:02:37.7]} 15. Bd3 {[%clk 0:02:26.3]}
15... cxd5 {[%clk 0:02:30.2]} 16. Qc2 {[%clk 0:02:12.5]} 16... Nc6 {[%clk
0:02:19.6]} 17. Rae1 {[%clk 0:02:08.9]} 17... Qc5 {[%clk 0:02:12.3]} 18. a3
{[%clk 0:01:53.4]} 18... dxc4 {[%clk 0:02:03.9]} 19. Bxc4+ {[%clk 0:01:51.8]}
19... d5 {[%clk 0:02:03.6]} 20. Na4 {[%clk 0:01:47]} 20... Qd6 {[%clk
0:01:57.3]} 21. Bd3 {[%clk 0:01:41.4]} 21... Ne4 {[%clk 0:01:56.8]} 22. Bxe4
{[%clk 0:01:41.2]} 22... fxe4 {[%clk 0:01:46.7]} 23. Bxg7 {[%clk 0:01:39.3]}
23... Kxg7 {[%clk 0:01:47.6]} 24. Qb2+ {[%clk 0:01:30.5]} 24... Qf6 {[%clk
0:01:42.9]} 25. Qxf6+ {[%clk 0:01:30.1]} 25... Rxf6 {[%clk 0:01:43.8]} 26. Nd2
{[%clk 0:01:29.2]} 26... Rxf1+ {[%clk 0:01:41.5]} 27. Nxf1 {[%clk 0:01:29.1]}
27... Bf5 {[%clk 0:01:36.6]} 28. Ne3 {[%clk 0:01:28.9]} 28... Be6 {[%clk
0:01:30]} 29. Nc5 {[%clk 0:01:27]} 29... Re8 {[%clk 0:01:26.9]} 30. Nxe6+ {[%clk
0:01:25.1]} 30... Rxe6 {[%clk 0:01:26.4]} 31. Nxd5 {[%clk 0:01:26]} 31... Nd4
{[%clk 0:01:25.2]} 32. b4 {[%clk 0:01:20.5]} 32... Nc2 {[%clk 0:01:23]} 33. Rc1
{[%clk 0:01:12.3]} 33... Nxa3 {[%clk 0:01:22.7]} 34. Rc7+ {[%clk 0:01:09.8]}
34... Kg6 {[%clk 0:01:21.7]} 35. g4 {[%clk 0:01:08.4]} 35... e3 {[%clk
0:01:16.1]} 36. Ne7+ {[%clk 0:01:08.4]} 36... Kf6 {[%clk 0:01:15.6]} 37. Nd5+
{[%clk 0:01:03.6]} 37... Ke5 {[%clk 0:01:11.5]} 38. Nxe3 {[%clk 0:01:03.3]}
38... Kf4 {[%clk 0:01:11.7]} 39. Nf5 {[%clk 0:00:54.5]} 39... Kxg4 {[%clk
0:01:09.7]} 40. Nd4 {[%clk 0:00:53]} 40... Re4 {[%clk 0:01:08.1]} 41. Rc3 {[%clk
0:00:43.5]} 41... Rxd4 {[%clk 0:01:05.7]} 42. Rxa3 {[%clk 0:00:43.3]} 42... Rxb4
{[%clk 0:01:03.3]} 43. Rxa7 {[%clk 0:00:43]} 43... h5 {[%clk 0:01:01.5]} 0-1

[Event "*** SCC Grand Prix: Titled Tuesday Blitz"]
[Site "Chess.com"]
[Date "2020.08.25"]
[Round "5"]
[White "Falcon28dz"]
[Black "JoySpaceman"]
[Result "1-0"]
[WhiteElo "2116"]
[BlackElo "2439"]
[TimeControl "180+1"]
[EndTime "10:56:14 PDT"]
[Termination "Falcon28dz won by resignation"]

1. e4 {[%clk 0:02:59.8]} 1... c5 {[%clk 0:02:57.3]} 2. Nf3 {[%clk 0:02:59.4]}
2... a6 {[%clk 0:02:56.5]} 3. b3 {[%clk 0:02:54.3]} 3... b5 {[%clk 0:02:55.2]}
4. a4 {[%clk 0:02:47.7]} 4... bxa4 {[%clk 0:02:49.6]} 5. Rxa4 {[%clk 0:02:46.6]}
5... d6 {[%clk 0:02:47.4]} 6. Nc3 {[%clk 0:02:39.9]} 6... Nf6 {[%clk 0:02:44.5]}
7. e5 {[%clk 0:02:14]} 7... Nfd7 {[%clk 0:02:34.7]} 8. exd6 {[%clk 0:02:06]}
8... exd6 {[%clk 0:02:30.3]} 9. Re4+ {[%clk 0:01:59.4]} 9... Be7 {[%clk
0:02:29.1]} 10. Nd5 {[%clk 0:01:57.3]} 10... Nc6 {[%clk 0:02:28.7]} 11. Qe2
{[%clk 0:01:17.3]} 11... Kf8 {[%clk 0:02:28.5]} 12. Bb2 {[%clk 0:01:05.9]} 12...
Rg8 {[%clk 0:01:57.7]} 13. Qe3 {[%clk 0:00:39.9]} 13... Bb7 {[%clk 0:01:54.6]}
14. Bc4 {[%clk 0:00:36.6]} 14... Nf6 {[%clk 0:01:00.1]} 15. Rxe7 {[%clk
0:00:32.8]} 15... Nxd5 {[%clk 0:00:53.2]} 16. Rxf7+ {[%clk 0:00:25.1]} 16...
Kxf7 {[%clk 0:00:53.8]} 17. Bxd5+ {[%clk 0:00:23.9]} 17... Kf8 {[%clk
0:00:54.1]} 18. Qf4+ {[%clk 0:00:20.8]} 18... Qf6 {[%clk 0:00:50.4]} 19. Bxf6
{[%clk 0:00:20.3]} 19... Re8+ {[%clk 0:00:32.7]} 20. Kd1 {[%clk 0:00:19.2]} 1-0

[Event "*** SCC Grand Prix: Titled Tuesday Blitz"]
[Site "Chess.com"]
[Date "2020.08.25"]
[Round "5"]
[White "novocane"]
[Black "PlotnikovPavel"]
[Result "0-1"]
[WhiteElo "2264"]
[BlackElo "2473"]
[TimeControl "180+1"]
[EndTime "10:56:16 PDT"]
[Termination "PlotnikovPavel won by resignation"]

1. d4 {[%clk 0:03:00.8]} 1... e6 {[%clk 0:02:59.9]} 2. c4 {[%clk 0:03:00.5]}
2... f5 {[%clk 0:02:59.8]} 3. Nc3 {[%clk 0:03:00.6]} 3... Nf6 {[%clk 0:03:00]}
4. Bg5 {[%clk 0:03:00.2]} 4... Bb4 {[%clk 0:02:58.4]} 5. Qb3 {[%clk 0:03:00.4]}
5... a5 {[%clk 0:02:57.6]} 6. Nf3 {[%clk 0:02:42.8]} 6... h6 {[%clk 0:02:55.4]}
7. Bxf6 {[%clk 0:02:37.2]} 7... Qxf6 {[%clk 0:02:56.3]} 8. e3 {[%clk 0:02:36.1]}
8... O-O {[%clk 0:02:55.2]} 9. Be2 {[%clk 0:02:34.2]} 9... Nc6 {[%clk
0:02:51.5]} 10. O-O {[%clk 0:02:24.8]} 10... Bxc3 {[%clk 0:02:49]} 11. Qxc3
{[%clk 0:02:24.7]} 11... d6 {[%clk 0:02:48.3]} 12. Rac1 {[%clk 0:02:10.2]} 12...
e5 {[%clk 0:02:44.6]} 13. dxe5 {[%clk 0:02:00.8]} 13... dxe5 {[%clk 0:02:44.1]}
14. c5 {[%clk 0:01:53.4]} 14... Be6 {[%clk 0:02:43.5]} 15. Bc4 {[%clk
0:01:52.1]} 15... e4 {[%clk 0:02:37.7]} 16. Qxf6 {[%clk 0:01:38.4]} 16... Rxf6
{[%clk 0:02:37]} 17. Bxe6+ {[%clk 0:01:27.2]} 17... Rxe6 {[%clk 0:02:37.9]} 18.
Nd4 {[%clk 0:01:27.5]} 18... Nxd4 {[%clk 0:02:36.8]} 19. exd4 {[%clk 0:01:27.5]}
19... Rd8 {[%clk 0:02:36.8]} 20. Rfd1 {[%clk 0:01:25.7]} 20... c6 {[%clk
0:02:37]} 21. g3 {[%clk 0:01:12.1]} 21... Re7 {[%clk 0:02:28.7]} 22. Rc4 {[%clk
0:00:58.9]} 22... Red7 {[%clk 0:02:28.3]} 23. Ra4 {[%clk 0:00:58.4]} 23... Kf7
{[%clk 0:02:27.1]} 24. Kf1 {[%clk 0:00:55.4]} 24... Ke6 {[%clk 0:02:26.8]} 25.
Ke2 {[%clk 0:00:44]} 25... g5 {[%clk 0:02:26.6]} 26. Ke3 {[%clk 0:00:40.4]}
26... Kd5 {[%clk 0:02:26.2]} 27. Rxa5 {[%clk 0:00:37.5]} 27... Rf7 {[%clk
0:02:21.8]} 28. f4 {[%clk 0:00:33.8]} 28... gxf4+ {[%clk 0:02:09.4]} 29. gxf4
{[%clk 0:00:25.2]} 29... Rg8 {[%clk 0:02:09.1]} 30. Rd2 {[%clk 0:00:23.7]} 30...
Rg1 {[%clk 0:02:07.4]} 31. b4 {[%clk 0:00:19.5]} 31... Rfg7 {[%clk 0:02:04.6]}
32. b5 {[%clk 0:00:17]} 32... Re1+ {[%clk 0:02:03.2]} 33. Re2 {[%clk 0:00:11.3]}
33... Rxe2+ {[%clk 0:02:01]} 34. Kxe2 {[%clk 0:00:12]} 34... Kxd4 {[%clk
0:02:01.1]} 35. b6 {[%clk 0:00:12]} 35... Rg2+ {[%clk 0:02:00.1]} 36. Kf1 {[%clk
0:00:12.6]} 36... Rxh2 {[%clk 0:02:00.1]} 37. Ra7 {[%clk 0:00:13]} 37... Ke3
{[%clk 0:01:58.4]} 38. Rxb7 {[%clk 0:00:12.9]} 38... Kf3 {[%clk 0:01:58.7]} 39.
Kg1 {[%clk 0:00:12.3]} 39... Rxa2 {[%clk 0:01:56.8]} 40. Re7 {[%clk 0:00:10.5]}
40... e3 {[%clk 0:01:56]} 41. b7 {[%clk 0:00:10.1]} 41... Rb2 {[%clk 0:01:56.3]}
42. Rc7 {[%clk 0:00:05.4]} 42... e2 {[%clk 0:01:55.7]} 43. Re7 {[%clk
0:00:05.7]} 43... Rxb7 {[%clk 0:01:54.2]} 0-1

[Event "*** SCC Grand Prix: Titled Tuesday Blitz"]
[Site "Chess.com"]
[Date "2020.08.25"]
[Round "5"]
[White "SHIVACalypso"]
[Black "korbul"]
[Result "0-1"]
[WhiteElo "2320"]
[BlackElo "2540"]
[TimeControl "180+1"]
[EndTime "10:56:16 PDT"]
[Termination "korbul won by resignation"]

1. Nf3 {[%clk 0:02:30.6]} 1... d5 {[%clk 0:02:59.4]} 2. c4 {[%clk 0:02:31.5]}
2... e6 {[%clk 0:02:59]} 3. g3 {[%clk 0:02:30.7]} 3... Nf6 {[%clk 0:02:59]} 4.
Bg2 {[%clk 0:02:30.2]} 4... Be7 {[%clk 0:02:59.2]} 5. O-O {[%clk 0:02:31.1]}
5... O-O {[%clk 0:02:59.2]} 6. d4 {[%clk 0:02:31.3]} 6... c6 {[%clk 0:02:59.5]}
7. Nc3 {[%clk 0:02:30.7]} 7... Nbd7 {[%clk 0:02:59.4]} 8. Nd2 {[%clk 0:02:30.2]}
8... b5 {[%clk 0:02:58.3]} 9. cxb5 {[%clk 0:02:21.7]} 9... cxb5 {[%clk
0:02:58.3]} 10. Nxb5 {[%clk 0:02:21.2]} 10... Qb6 {[%clk 0:02:57.5]} 11. Nc3
{[%clk 0:02:17.5]} 11... Qxd4 {[%clk 0:02:57]} 12. Nf3 {[%clk 0:02:11.7]} 12...
Qb6 {[%clk 0:02:49.3]} 13. b3 {[%clk 0:02:04.9]} 13... Ba6 {[%clk 0:02:44.7]}
14. Be3 {[%clk 0:02:03.5]} 14... Qa5 {[%clk 0:02:39.6]} 15. Rc1 {[%clk
0:02:00.2]} 15... Ba3 {[%clk 0:02:37.7]} 16. Rc2 {[%clk 0:01:59.7]} 16... Rfc8
{[%clk 0:02:23.6]} 17. Bd4 {[%clk 0:01:57.5]} 17... Rc7 {[%clk 0:01:56.4]} 18.
Ne5 {[%clk 0:01:51.9]} 18... Rac8 {[%clk 0:01:54.3]} 19. Nxd7 {[%clk 0:01:50.7]}
19... Nxd7 {[%clk 0:01:54]} 20. Qd2 {[%clk 0:01:20.8]} 20... Bb4 {[%clk
0:01:39.4]} 21. Rfc1 {[%clk 0:01:18.1]} 21... e5 {[%clk 0:01:34.3]} 22. a3
{[%clk 0:01:04.1]} 22... Bxa3 {[%clk 0:01:28]} 23. Ra1 {[%clk 0:01:03]} 23...
exd4 {[%clk 0:01:23.5]} 24. Qxd4 {[%clk 0:01:03.9]} 24... Bc5 {[%clk 0:01:15.4]}
25. Rxa5 {[%clk 0:00:58.3]} 25... Bxd4 {[%clk 0:01:15.3]} 26. Rxa6 {[%clk
0:00:53]} 26... Rxc3 {[%clk 0:01:06.6]} 27. Rxc3 {[%clk 0:00:48.2]} 27... Rxc3
{[%clk 0:01:05.4]} 28. Bxd5 {[%clk 0:00:48.7]} 28... Bb6 {[%clk 0:00:59.9]} 29.
Bc4 {[%clk 0:00:44.6]} 29... Ne5 {[%clk 0:00:57.3]} 30. Bd5 {[%clk 0:00:37.8]}
30... Rc2 {[%clk 0:00:52.4]} 31. Ra4 {[%clk 0:00:33.3]} 31... Rxe2 {[%clk
0:00:46.3]} 0-1

[Event "*** SCC Grand Prix: Titled Tuesday Blitz"]
[Site "Chess.com"]
[Date "2020.08.25"]
[Round "5"]
[White "Marty435"]
[Black "vladislavkovalev"]
[Result "0-1"]
[WhiteElo "2624"]
[BlackElo "2881"]
[TimeControl "180+1"]
[EndTime "10:56:18 PDT"]
[Termination "vladislavkovalev won by resignation"]

1. d4 {[%clk 0:01:15.9]} 1... Nf6 {[%clk 0:02:59.1]} 2. Bf4 {[%clk 0:01:13.4]}
2... g6 {[%clk 0:02:58.3]} 3. Nc3 {[%clk 0:01:12]} 3... d5 {[%clk 0:02:58.5]} 4.
Qd2 {[%clk 0:00:56.5]} 4... Bg7 {[%clk 0:02:57.3]} 5. Bh6 {[%clk 0:00:53.6]}
5... O-O {[%clk 0:02:45.9]} 6. O-O-O {[%clk 0:00:52.7]} 6... c5 {[%clk
0:02:34.9]} 7. Bxg7 {[%clk 0:00:51.4]} 7... Kxg7 {[%clk 0:02:35.1]} 8. dxc5
{[%clk 0:00:52.1]} 8... Qa5 {[%clk 0:02:33.3]} 9. Nxd5 {[%clk 0:00:51.7]} 9...
Qxa2 {[%clk 0:02:32.7]} 10. Qc3 {[%clk 0:00:52.2]} 10... Nc6 {[%clk 0:02:19.3]}
11. e4 {[%clk 0:00:50.8]} 11... Kg8 {[%clk 0:01:29.5]} 12. Nxf6+ {[%clk
0:00:46.2]} 12... exf6 {[%clk 0:01:30.4]} 13. Bc4 {[%clk 0:00:45.6]} 13... Qa1+
{[%clk 0:01:30.7]} 14. Kd2 {[%clk 0:00:45.5]} 14... Rd8+ {[%clk 0:01:31.3]} 15.
Bd5 {[%clk 0:00:45.3]} 15... Qa4 {[%clk 0:01:26.4]} 16. Qxf6 {[%clk 0:00:42.4]}
16... Be6 {[%clk 0:01:26.6]} 17. Ke1 {[%clk 0:00:30.8]} 17... Bxd5 {[%clk
0:01:23.7]} 18. exd5 {[%clk 0:00:30.7]} 18... Rxd5 {[%clk 0:01:13.3]} 19. Rxd5
{[%clk 0:00:31.6]} 19... Qe4+ {[%clk 0:01:13.6]} 20. Ne2 {[%clk 0:00:31.1]}
20... Qxd5 {[%clk 0:01:14.2]} 21. Qf3 {[%clk 0:00:27.3]} 21... Qxc5 {[%clk
0:01:12.8]} 22. Qc3 {[%clk 0:00:27.5]} 22... Qg5 {[%clk 0:01:05]} 23. Qg3 {[%clk
0:00:22.2]} 23... Qa5+ {[%clk 0:01:01.4]} 24. Nc3 {[%clk 0:00:16.4]} 24... Re8+
{[%clk 0:00:44.4]} 25. Kd2 {[%clk 0:00:16.3]} 25... Rd8+ {[%clk 0:00:45.1]} 26.
Ke1 {[%clk 0:00:16.4]} 26... Qa1+ {[%clk 0:00:44.4]} 0-1

[Event "*** SCC Grand Prix: Titled Tuesday Blitz"]
[Site "Chess.com"]
[Date "2020.08.25"]
[Round "5"]
[White "Fh2411"]
[Black "abykhovsky"]
[Result "0-1"]
[WhiteElo "2550"]
[BlackElo "2774"]
[TimeControl "180+1"]
[EndTime "10:56:18 PDT"]
[Termination "abykhovsky won by resignation"]

1. d4 {[%clk 0:02:29.8]} 1... Nf6 {[%clk 0:02:58.9]} 2. Nf3 {[%clk 0:02:29.2]}
2... g6 {[%clk 0:02:59.1]} 3. g3 {[%clk 0:02:29]} 3... Bg7 {[%clk 0:02:59.4]} 4.
Bg2 {[%clk 0:02:29.9]} 4... O-O {[%clk 0:02:59.8]} 5. O-O {[%clk 0:02:30.8]}
5... d6 {[%clk 0:02:58.4]} 6. c4 {[%clk 0:02:26.5]} 6... Nbd7 {[%clk 0:02:58.2]}
7. Nc3 {[%clk 0:02:27.1]} 7... e5 {[%clk 0:02:59.1]} 8. e4 {[%clk 0:02:26.5]}
8... exd4 {[%clk 0:02:58.7]} 9. Nxd4 {[%clk 0:02:27.4]} 9... Nc5 {[%clk
0:02:59.4]} 10. h3 {[%clk 0:02:25.8]} 10... Re8 {[%clk 0:02:59.8]} 11. Re1
{[%clk 0:02:26.1]} 11... h6 {[%clk 0:02:59.8]} 12. Bf4 {[%clk 0:02:21.5]} 12...
Ne6 {[%clk 0:02:58.8]} 13. Be3 {[%clk 0:02:13.5]} 13... Ng5 {[%clk 0:02:58.5]}
14. Bxg5 {[%clk 0:02:11.9]} 14... hxg5 {[%clk 0:02:59.4]} 15. Qd2 {[%clk
0:02:07.2]} 15... g4 {[%clk 0:02:59.5]} 16. h4 {[%clk 0:02:07.3]} 16... Nd7
{[%clk 0:02:59.4]} 17. Nd5 {[%clk 0:01:53.5]} 17... Ne5 {[%clk 0:02:58.5]} 18.
Rac1 {[%clk 0:01:53.2]} 18... c6 {[%clk 0:02:56.5]} 19. Ne3 {[%clk 0:01:48.5]}
19... Qf6 {[%clk 0:02:54]} 20. Red1 {[%clk 0:01:46.1]} 20... Bh6 {[%clk
0:02:35.7]} 21. Qc3 {[%clk 0:01:32.6]} 21... Bd7 {[%clk 0:02:30]} 22. b4 {[%clk
0:01:09.1]} 22... a6 {[%clk 0:02:24.4]} 23. Rc2 {[%clk 0:01:06.5]} 23... Rad8
{[%clk 0:02:16.2]} 24. Nf1 {[%clk 0:00:46]} 24... Bg7 {[%clk 0:02:01.4]} 25. Qe3
{[%clk 0:00:44.8]} 25... b5 {[%clk 0:01:48.9]} 26. cxb5 {[%clk 0:00:38.1]} 26...
axb5 {[%clk 0:01:49.8]} 27. Qf4 {[%clk 0:00:38.2]} 27... Qe7 {[%clk 0:01:34.3]}
28. Ne3 {[%clk 0:00:35.1]} 28... Kh7 {[%clk 0:01:34.1]} 29. Nef5 {[%clk
0:00:20.1]} 29... gxf5 {[%clk 0:01:33.2]} 30. Nxf5 {[%clk 0:00:20.3]} 30... Bxf5
{[%clk 0:01:33.1]} 31. Qxf5+ {[%clk 0:00:20.8]} 31... Kg8 {[%clk 0:01:32]} 32.
Rcd2 {[%clk 0:00:11.3]} 32... Nc4 {[%clk 0:01:27.1]} 33. Qxg4 {[%clk 0:00:09.3]}
33... Nxd2 {[%clk 0:01:26.6]} 34. Rxd2 {[%clk 0:00:10.2]} 34... d5 {[%clk
0:01:24]} 35. exd5 {[%clk 0:00:08.5]} 35... Qe1+ {[%clk 0:01:23.4]} 36. Kh2
{[%clk 0:00:08.2]} 36... Qxd2 {[%clk 0:01:23.9]} 37. dxc6 {[%clk 0:00:07.7]}
37... Qxf2 {[%clk 0:01:22.2]} 38. c7 {[%clk 0:00:08]} 38... Rd2 {[%clk
0:01:21.8]} 0-1

[Event "*** SCC Grand Prix: Titled Tuesday Blitz"]
[Site "Chess.com"]
[Date "2020.08.25"]
[Round "5"]
[White "chenxiaoyuer"]
[Black "murtas73"]
[Result "1-0"]
[WhiteElo "2438"]
[BlackElo "2641"]
[TimeControl "180+1"]
[EndTime "10:56:18 PDT"]
[Termination "chenxiaoyuer won on time"]

1. e4 {[%clk 0:03:00.9]} 1... c5 {[%clk 0:02:55.2]} 2. Nf3 {[%clk 0:02:54.8]}
2... e6 {[%clk 0:02:48.7]} 3. d4 {[%clk 0:02:54.3]} 3... cxd4 {[%clk 0:02:44.1]}
4. Nxd4 {[%clk 0:02:55.2]} 4... Nf6 {[%clk 0:02:42.8]} 5. Nc3 {[%clk 0:02:54.3]}
5... d6 {[%clk 0:02:42.9]} 6. Be2 {[%clk 0:02:53.1]} 6... Be7 {[%clk 0:02:36.3]}
7. O-O {[%clk 0:02:53]} 7... O-O {[%clk 0:02:33.9]} 8. f4 {[%clk 0:02:52.7]}
8... Nc6 {[%clk 0:02:33.4]} 9. Be3 {[%clk 0:02:52.2]} 9... e5 {[%clk 0:02:32.2]}
10. Nb3 {[%clk 0:01:50]} 10... exf4 {[%clk 0:02:24.1]} 11. Rxf4 {[%clk 0:01:45]}
11... Be6 {[%clk 0:02:24.3]} 12. Nd4 {[%clk 0:01:39.6]} 12... Ne5 {[%clk
0:02:16.7]} 13. Qd2 {[%clk 0:01:29.2]} 13... Rc8 {[%clk 0:02:12.4]} 14. Raf1
{[%clk 0:01:22.1]} 14... a6 {[%clk 0:02:05.5]} 15. a4 {[%clk 0:01:19.6]} 15...
Ng6 {[%clk 0:01:53.1]} 16. R4f2 {[%clk 0:01:15.2]} 16... Qd7 {[%clk 0:01:37.5]}
17. Nf5 {[%clk 0:00:42.2]} 17... Bxf5 {[%clk 0:01:23]} 18. Rxf5 {[%clk
0:00:41.6]} 1-0